Cogmind - Beta 16.1 @@@ ROGUE MODE // 2026.04.19 @ 15:05:26 Player: Plexion Result: Destroyed by D-53 Grenadier with Mini Grenade Launcher Performance ------------- Evolutions (0) 0 Regions Visited (2) 400 Robots Destroyed (18) 90 Value Destroyed (235) 235 Prototype IDs (0) 0 Alien Tech Used (0) 0 Bonus (19) 19 TOTAL SCORE: 744 Bonus ------- Follower Combat Kills 21 Friendly Fire -2 Cogmind --------- Core Integrity 0/250 Matter 295/300 Energy 100/100 System Corruption 0% Temperature Cool (0) Movement Treading (240) Ox1 Location -10/Mines Parts ------- > --- POWER (1) -------- (None) > --- PROPULSION (2) --- Light Treads > --- UTILITY (2) ------ Large Storage Unit Seismic Detector > --- WEAPON (2) ------- Light Assault Rifle Light Assault Rifle > --- INVENTORY (15) --- Ion Engine Light Ion Engine Wheel Compact Wheel Light Assault Rifle Light Assault Rifle Peak State ------------ > --- POWER ------------ Ion Engine > --- PROPULSION ------- Light Treads Light Treads > --- UTILITY ---------- Small Storage Unit Seismic Detector > --- WEAPON ----------- Light Assault Rifle Light Assault Rifle > --- INVENTORY -------- Light Ion Engine Wheel Compact Wheel EM Pulse Gun [Rating: 7] Favorites ----------- Power Ion Engine Engine Ion Engine Propulsion Light Treads Treads Light Treads Utility Seismic Detector Device Seismic Detector Storage Large Storage Unit Weapon Light Assault Rifle Energy Gun EM Pulse Gun Ballistic Gun Light Assault Rifle Launcher Grenade Launcher Build | -11 -10 -10 ------- Run | Yrd Mat Min Slots Evolved . | . . . Power . | . . . Propulsion . | . . . Utility . | . . . Weapon . | . . . Parts Attached 17 | 8 3 6 Power 4 | 2 . 2 Engine 4 | 2 . 2 Core . | . . . Reactor . | . . . Propulsion 4 | 2 . 2 Treads 4 | 2 . 2 Leg . | . . . Wheel . | . . . Hover . | . . . Flight . | . . . Utility 4 | 2 2 . Device 2 | 1 1 . Storage 2 | 1 1 . Processor . | . . . Hackware . | . . . Protection . | . . . Artifact . | . . . Weapon 5 | 2 1 2 Energy Gun 1 | . . 1 Energy Cannon . | . . . Ballistic Gun 3 | 2 . 1 Ballistic Cannon . | . . . Launcher 1 | . 1 . Special Weapon . | . . . Impact Weapon . | . . . Slashing Weapon . | . . . Piercing Weapon . | . . . Special Melee Weapon . | . . . Unidentified Prototypes . | . . . Parts Lost 8 | . . 8 Power 2 | . . 2 Propulsion 3 | . . 3 Utility 1 | . . 1 Weapon 2 | . . 2 Highest Loss Streak 5 | . . 5 To Critical Strikes . | . . . Average Backups 5 | 2 5 5 Power 1 | . 1 1 Propulsion 2 | 1 2 2 Utility . | . . . Weapon 1 | . 1 1 Tool/Special . | . . . Unused Backups 3 | . . 3 Power . | . . . Propulsion 2 | . . 2 Utility . | . . . Weapon 1 | . . 1 Tool/Special . | . . . Average Slot Usage (%) 96 | . 99 94 Engine 13 | . 14 13 Treads 28 | . 28 28 Device 12 | . 13 11 Storage 14 | . 14 14 Energy Gun 7 | . . 12 Ballistic Gun 18 | . 27 12 Peak Build Rating 7 | 7 7 7 Average Rating 6 | 4 6 6 On Entrance 4 | . 7 7 Avg Prop Armor Cover (%) . | . . . Naked Turns . | . . . Heaviest Build 30 | 13 28 30 Greatest Support 40 | 40 40 40 Greatest Overweight (x) . | . . . Average Overweight (x) . | . . . Largest Inventory Capacity 15 | 8 15 15 Average Capacity 12 | 6 10 15 Most Carried 8 | 4 8 8 Average Carried 5 | 2 5 5 Final Capacity 15 | 8 15 15 Final Carried 8 | 4 8 6 Class Distribution -------------------- 100% | Mutant Dominant Class ---------------- Mutant | -10/Materials Mutant | -10/Mines Resources | -11 -10 -10 ----------- Run | Yrd Mat Min Matter Collected 664 | 209 95 360 Remotely . | . . . Salvage Created 418 | 12 145 261 Parts 24 | 2 13 9 Haulers Intercepted 1 | . 1 . Recyclers Shooed 4 | . 4 . Parts Field Recycled . | . . . Retrieved Matter . | . . . Parts Self-Destructed . | . . . Prevented . | . . . Parts Restored . | . . . Kills | -11 -10 -10 ------- Run | Yrd Mat Min Combat Hostiles Destroyed 31 | . 10 21 Guns 5 | . 1 4 AOE 26 | . 9 17 Classes Destroyed 7 | 1 4 2 Tunneler 1 | 1 . . Hauler 1 | . 1 . Recycler 2 | . . 2 Watcher 1 | . 1 . Swarmer 11 | . 9 2 Grunt 2 | . 1 1 Assembled 18 | . . 18 Best Kill Streak 18 | 1 7 18 Combat Bots Only 18 | . 6 18 Max Kills in Single Turn 5 | 1 3 5 Gunslinging 1 | . . 1 Exploded 5 | . 3 5 Melee . | . . . Uniques/NPCs Destroyed . | . . . Combat | -11 -10 -10 -------- Run | Yrd Mat Min Hostile Shots Fired 101 | . 15 86 Missed 33 | . 7 26 Hits 68 | . 8 60 Melee 4 | . . 4 Projectile 64 | . 8 56 AOE 9 | . . 9 Critical Strikes 2 | . . 2 Damage Taken 1331 | . 111 1220 Core 257 | . 10 247 Absorbed by Shields . | . . . Core Remaining (%) 100 | 100 . . Volleys Fired 61 | 2 22 37 Largest 2 | 2 2 2 Hottest 60 | 40 40 60 Shots Fired 93 | 4 38 51 Gun 74 | 4 32 38 Cannon . | . . . Launcher 19 | . 6 13 Special . | . . . Kinetic 56 | 4 32 20 Thermal . | . . . Explosive 19 | . 6 13 Electromagnetic 18 | . . 18 Robot Hit Streak 7 | 2 7 6 Robot Miss Streak 3 | 1 2 3 Penetration Max . | . . . Secondary Targets 2 | . . 2 Max Gunslinging Chain 1 | . . 1 Shots Hit Robots 52 | 2 24 26 Core Hits 63 | 1 17 45 Critical Kills . | . . . Critical Parts Destroyed . | . . . Critical Strikes . | . . . Melee Attacks . | . . . Impact . | . . . Slashing . | . . . Piercing . | . . . Sneak Attacks . | . . . Combat Hostiles . | . . . Follow-up Attacks . | . . . Damage Inflicted 2217 | 20 710 1487 Guns 419 | 20 168 231 Cannons . | . . . Explosions 1798 | . 542 1256 Melee . | . . . Ramming . | . . . Kinetic 290 | 20 168 102 Thermal . | . . . Explosive 1798 | . 542 1256 Electromagnetic 129 | . . 129 Impact . | . . . Slashing . | . . . Piercing . | . . . Highest Corruption . | . . . Average Corruption . | . . . Corruption Purged . | . . . Corruption Blocked . | . . . Overload Shots . | . . . Overflow Damage 80 | . 42 38 Projectiles . | . . . Explosions 80 | . 42 38 Melee . | . . . Knockbacks . | . . . Impact . | . . . Kinetic . | . . . Secondary . | . . . Self-Inflicted Damage 77 | . 36 41 Shots 3 | . 1 2 Rammed 2 | . 1 1 Targets Rammed 2 | . 1 1 Kicked . | . . . Crushed . | . . . Highest Temperature 40 | . 12 40 Average Temperature 14 | . 9 14 Received Heat Transfer 83 | . 18 65 Siege Activations . | . . . Martial Activations . | . . . Shielding Activations . | . . . Robots Disrupted . | . . . Combat Hostiles . | . . . Robots Corrupted . | . . . Combat Hostiles . | . . . Parts Fried . | . . . Impact Corruptions . | . . . Robots Melted . | . . . Combat Hostiles . | . . . Parts Melted . | . . . Heat Transferred . | . . . Parts Sabotaged . | . . . Parts Stolen . | . . . Parts Stripped . | . . . Power Chain Reactions . | . . . Alert | -11 -10 -10 ------- Run | Yrd Mat Min Maximum Alert Level . | . . . Low Security (%) 100 | 100 100 100 Level 1 . | . . . Level 2 . | . . . Level 3 . | . . . Level 4 . | . . . Level 5 . | . . . High Security . | . . . Max Security . | . . . Peak Influence 164 | 5 164 99 Initial 39 | . . 39 Average 33 | . 54 20 Influence Increases 544 | 5 300 239 Destroy 0b10 Robot/C 320 | . 200 120 Destroy 0b10 Robot/NC 25 | 5 10 10 Destroy Leader 54 | . 34 20 Allied During Kill 14 | . . 14 Successful Hack 4 | . 4 . Disable Machine 30 | . 15 15 Destroy Structure 97 | . 37 60 Influence Decreases 544 | 5 200 339 Entered New Map 61 | . . 61 Time Decay 390 | 5 200 185 Lost Part 60 | . . 60 Lost Ally 33 | . . 33 Squads Dispatched 1 | . 1 . Investigation . | . . . Extermination . | . . . Reinforcement 1 | . 1 . Assault . | . . . Garrison . | . . . Intercept . | . . . Searches Triggered . | . . . Construction Impeded . | . . . Haulers Reinforced . | . . . Active Scanning Responses . | . . . Cargo Convoy Interrupts . | . . . Stealth | -11 -10 -10 --------- Run | Yrd Mat Min Distress Signals 1 | . 1 . Communications Jammed . | . . . Distress Signals . | . . . Times Spotted 45 | . 15 30 Peak Tracking Total 20 | . 7 20 Tactical Retreats 1 | . . 1 Traps | -11 -10 -10 ------- Run | Yrd Mat Min Traps Triggered . | . . . Indirectly . | . . . Trap Hack Attempts . | . . . Triggered . | . . . Disarmed . | . . . Reprogrammed . | . . . Reused . | . . . Traps Extracted . | . . . Installed . | . . . Triggered . | . . . Machines | -11 -10 -10 ---------- Run | Yrd Mat Min Machines Disabled 2 | . 1 1 Max in Single Turn 1 | . 1 . Machines Repaired . | . . . Machines Dismantled . | . . . Machines Sabotaged . | . . . Overloaded Fab Kills . | . . . Hacking | -11 -10 -10 --------- Run | Yrd Mat Min Machines Accessed 3 | . 2 1 Terminals 3 | . 2 1 Fabricators . | . . . Repair Stations . | . . . Recycling Units . | . . . Scanalyzers . | . . . Garrison Access . | . . . Total Hacks 7 | . 5 2 Successful 2 | . 2 . Failed 5 | . 3 2 Catastrophic 1 | . . 1 Database Lockouts . | . . . Manual 2 | . . 2 Terminals 7 | . 5 2 Fabricators . | . . . Repair Stations . | . . . Recycling Units . | . . . Scanalyzers . | . . . Garrison Access . | . . . Terminal Hacks 2 | . 2 . Locate Traps 2 | . 2 . Fabricator Hacks . | . . . Repair Station Hacks . | . . . Recycling Unit Hacks . | . . . Scanalyzer . | . . . Garrison Access Hacks . | . . . Unauthorized Hacks . | . . . Terminals . | . . . Fabricators . | . . . Repair Stations . | . . . Recycling Units . | . . . Scanalyzers . | . . . Garrison Access . | . . . Data Cores Recovered . | . . . Used . | . . . Hacking Detections 2 | . 1 1 Full Trace Events . | . . . Feedback Events . | . . . Feedback Blocked . | . . . Robot Schematics Acquired . | . . . Robots Built . | . . . Authchips . | . . . Time . | . . . Total Robot Build Rating . | . . . Part Schematics Acquired . | . . . Parts Built . | . . . Authchips . | . . . Time . | . . . Total Part Build Rating . | . . . Part Studies Acquired . | . . . Parts Repaired . | . . . Time . | . . . Parts Recycled . | . . . Recycled Matter . | . . . Retrieved Matter . | . . . Retrieved Components . | . . . Parts Scanalyzed . | . . . Part Schematics Acquired . | . . . Parts Damaged . | . . . Bothacking | -11 -10 -10 ------------ Run | Yrd Mat Min Used RIF Installer . | . . . Robots Hacked . | . . . Non-combat . | . . . Combat . | . . . Robot Hacks Applied . | . . . Relay Couplers Released . | . . . Fabnet Peak Effective % . | . . . Robots Rewired . | . . . Allies Hacked . | . . . Hacks Repelled . | . . . Allies | -11 -10 -10 -------- Run | Yrd Mat Min Total Allies 3 | . . 3 Largest Group 3 | . . 3 Highest-Rated Group 40 | . . 40 Highest-Rated Ally 16 | . . 16 Total Orders . | . . . Ally Attacks 14 | . . 14 Total Damage 132 | . . 132 Kills 3 | . . 3 Allies Corrupted . | . . . Allies Melted . | . . . Intel | -11 -10 -10 ------- Run | Yrd Mat Min Active Infowar (turns) 1319 | 18 614 687 Seismic 1319 | 18 614 687 Robot Analysis Total . | . . . Derelict Logs Recovered . | . . . Drone Launches . | . . . Drone Recoveries . | . . . Exploration | -11 -10 -10 ------------- Run | Yrd Mat Min Turns Passed 1564 | 91 636 837 Spaces Moved 854 | 49 352 453 Core 6 | 6 . . Treads 848 | 43 352 453 Legs . | . . . Wheels . | . . . Hover . | . . . Flight . | . . . Fastest Speed 50 | 50 160 160 Average Speed 159 | 146 160 160 Slowest Speed 160 | 160 160 160 Overloaded Moves . | . . . Propulsion Burnouts . | . . . Robots Hopped . | . . . Potential Cave-ins . | . . . Cave-ins Triggered . | . . . Exploration Rate (%) 54 | 3 72 88 Regions Visited 2 Branch Regions 1 Pre-discovered Areas . | . . . Known Exits Taken . | . . . Unknown Exits Taken 2 | 1 1 . Scrap Searched 1 | . . 1 Spaces Dug 21 | . 16 5 Terrain Destroyed 128 | . 41 87 Melee . | . . . Projectile . | . . . AOE 128 | . 41 87 Terrain Rammed . | . . . Walls Destroyed . | . . . Machines Disabled . | . . . Actions | -11 -10 -10 --------- Run | Yrd Mat Min Total 966 | 61 391 514 Wait 15 | . 5 10 Move 852 | 48 351 453 Hop . | . . . Pick Up 8 | 3 3 2 Fast Attach 8 | 7 . 1 Attach 6 | . 1 5 Detach 1 | . 1 . Swap 12 | 1 6 5 Drop 1 | . 1 . Fire 61 | 2 22 37 Melee . | . . . Ram . | . . . Kick . | . . . Crush 2 | . 1 1 Escape Stasis . | . . . Rewire . | . . . Trap . | . . . Miscellaneous . | . . . Route ------- -11/Scrapyard -10/Materials (discovered 4 exits: [*Mat x3] / *Min) -10/Mines (discovered 3 exits: [*Mat x2] / [*Sub]) History --------- Turn | Location | Event 3 | -11/Scrapyard | Discovered new exit (range 16) 92 | -11/Scrapyard | Entered Materials 140 | -10/Materials | Discovered new exit (range 8) 308 | -10/Materials | Build established: Mutant 532 | -10/Materials | Discovered new exit (range 16) 631 | -10/Materials | Discovered new exit (range 8) 655 | -10/Materials | Discovered new exit (range 15) 728 | -10/Materials | Entered Mines 729 | -10/Mines | Assembled infested the area 734 | -10/Mines | Assisted by a Guerilla fighting off Assembled 792 | -10/Mines | Destroyed 18 combat bots 820 | -10/Mines | Lost 5 parts (1p2n1u1w) 1026 | -10/Mines | Discovered new exit (range 14) 1069 | -10/Mines | Assisted by bots powering up and referring to "LRC-V3" 1122 | -10/Mines | Found a hidden stash of uninstalled traps 1251 | -10/Mines | Discovered new exit (range 11) 1309 | -10/Mines | Discovered new exit (range 6) 1560 | -10/Mines | Core integrity fell below 50% 1564 | -10/Mines | Core integrity fell below 20% 1565 | -10/Mines | Destroyed by D-53 Grenadier with Mini Grenade Launcher Last Messages --------------- 01260_ R-06 Scavenger collects Heat Sink. 01262_ S-10 Pest destroyed. 01263_ R-06 Scavenger collects Aluminum Leg. 01265_ Acquired 1 matter. 01267_ S-10 Pest destroyed. 01267_ Switching to secondary target: S-10 Pest. 01267_ S-10 Pest destroyed. 01268_ Acquired 1 matter. 01274_ R-06 Scavenger collects Lgt. Assault Rifle. 01291_ Acquired Lgt. Assault Rifle. 01309_ EXIT=FOUND 01557_ Lgt. Ion Engine destroyed. 01557_ Trooper 1b destroyed. 01557_ Trooper 1a destroyed. 01557_ EM Pulse Gun destroyed. 01558_ Slammed into K-01 Serf. 01559_ K-01 Serf destroyed. 01563_ The unstable cave ceiling collapses. 01563_ K-01 Serf destroyed. 01565_ Lgt. Treads destroyed. Map ----- +----------------------------------------------------+ | ????????????????????###### ####### * #?# | | ????????????????????# = [ ### | | ????????????????????# ## ######### | | ????????????????????# ####### ### #??????# | | ????????????????????# #?????## ###?# #??????# | | ???????#######??##### #??????######???# #??##### | | ##????## ##?# #???????????????# #?## | | #### #?# #####???????????????# ### | | #?# #???????????????????# | | ### #???????????????????###### | | ???# #????????????????????????##### | | ????# #???????????????????????????## | | ??###### # ###??????????????????????????### | | ??# ## #????????????????????####???## # | | ??# ##### ### #??????????????????### ######## | | ??????## #?# ######????????????## | | ?????## #?# #????????????# ### ### # | | ##???# #?###### #????????????# """" ### # # # | | ##??# #??????# #????????????# """" # | | ##### ##??????# #????????????# """" ### ### | | #### #???????# ########?????# ##?# " # | | ## #### #???????# ## # ##????## #?## | | ## #???????# # ##????#### ### # | | ######## #####???# d #???????# ## ## | | ##??????# #???### d #???????# ##? | | ????########## #????# @ #???????#### ##?? | | ???## ##????# #????# #??????????######??? | | ???# ##???# ###??# #??????????????????? | | ???# & #??## ##?## #???????????????#### | | ???# & & #### #??## #???????######### # | | ???## && ## ##??#### % T#???????# ? | | ????# ##?# #???????# #????# | | ????# ### ######### ###### | | ????# ## "" " =% | | ????## ## """" %! | | ?????##### ###### ### """" ################ | | ?????????####?????###?# #??????????????# | | ??????????????????????# """" #??????????????# ## | | ??????????????????????# """" #??????????????# #? | | ????????############### """" #??????????????# ## | | ??????### #?????????????## | | ??????# #?????????????# | | ??????# ######### ## #?????????????# # | | ??????# ####???????# ##### ###############??## # | | ??????# #??????????# ##??# ##### # | | ??????# #?????????## #### ############# # | | ??????# #?????????# ## ##??????????######## ## | | ??????# #?????????# #?????????????????###? | | ####### ############ #????????????????????? | | # % ## #????????????????????? | +----------------------------------------------------+ Best States ------------- Heat Dissipation 25 Energy Generation 10 Energy Capacity 250 Matter Stores 300 Matter Capacity 300 Sight Range 16 Terrain Scan Density 10 Evasion (%) 40 Recoil Reduction 2 Item Schematics ----------------- None Robot Schematics ------------------ None Fabricated ------------ Nothing Repaired ---------- Nothing Studied --------- None Alien Tech Used ----------------- None Achievements -------------- None Challenges ------------ None Game ------ Seed FactoryCouplerModule Manual? 0 Play Time 00:09:37 Cumulative 963.8 hours Start 2026.04.19 @ 11:52:48 End 2026.04.19 @ 15:05:26 Sessions 1 Manual Loads 0 Difficulty Rogue Special Mode None Game No. 863 Rogue 776 Adventurer 87 Explorer 0 Win Type - Total 65 Types 10/9/33/2/1/1/5/1/1/2 Lore% 97 Gallery% 90 Achievement% 73 Wizard Run 0 Options --------- Layout 0 ASCII 0 Keyboard 1 Movement Numpad Keybinds 0 Fullscreen 2 Font 18/SmallcapsGlow Map View 76x50 Zoom Use 0% Tactical HUD 1 Map Filters NONE Filters NONE Steam 1 RUN: 3ab31f1c-b1f6-4106-9237-9b493cf8a19d